[Event "*** MasterClass Titled Tuesday Blitz"]
[Site "Chess.com"]
[Date "2017.11.07"]
[Round "6"]
[White "Ilja_Semjonovs"]
[Black "Krasimir_Rusev"]
[Result "0-1"]
[WhiteElo "2374"]
[BlackElo "2584"]
[TimeControl "180+2"]
[EndTime "15:28:44 PST"]
[Termination "Krasimir_Rusev won by checkmate"]

1. e4 {[%clk 0:03:01.9]} 1... e5 {[%clk 0:02:59.9]} 2. Nf3 {[%clk 0:03:02.7]}
2... d6 {[%clk 0:03:00.9]} 3. d4 {[%clk 0:03:02.8]} 3... exd4 {[%clk 0:03:02.8]}
4. Nxd4 {[%clk 0:03:04.7]} 4... Nf6 {[%clk 0:03:04.1]} 5. Nc3 {[%clk 0:03:06.1]}
5... Be7 {[%clk 0:03:05.7]} 6. g3 {[%clk 0:03:02.8]} 6... O-O {[%clk 0:03:07.1]}
7. Bg2 {[%clk 0:03:03]} 7... Re8 {[%clk 0:03:08.8]} 8. O-O {[%clk 0:02:51]} 8...
c6 {[%clk 0:03:10.4]} 9. Re1 {[%clk 0:02:45.1]} 9... Bf8 {[%clk 0:03:09.5]} 10.
h3 {[%clk 0:02:40.8]} 10... Nbd7 {[%clk 0:03:07]} 11. a4 {[%clk 0:02:36.7]}
11... a5 {[%clk 0:03:07.6]} 12. Bf4 {[%clk 0:02:35.7]} 12... Nc5 {[%clk
0:03:03.9]} 13. Qd2 {[%clk 0:02:36.9]} 13... h6 {[%clk 0:02:56.5]} 14. Rad1
{[%clk 0:02:17.7]} 14... Qb6 {[%clk 0:02:57.5]} 15. b3 {[%clk 0:02:14]} 15...
Qb4 {[%clk 0:02:47.5]} 16. h4 {[%clk 0:01:57.8]} 16... Bg4 {[%clk 0:02:43.1]}
17. f3 {[%clk 0:01:54]} 17... Bd7 {[%clk 0:02:43.6]} 18. Be3 {[%clk 0:01:51.9]}
18... Rad8 {[%clk 0:02:43.5]} 19. Kh2 {[%clk 0:01:49.5]} 19... Bc8 {[%clk
0:02:44.8]} 20. Bf4 {[%clk 0:01:34]} 20... Nh5 {[%clk 0:02:39.9]} 21. Be3 {[%clk
0:01:31.6]} 21... d5 {[%clk 0:02:37.2]} 22. exd5 {[%clk 0:01:26.9]} 22... cxd5
{[%clk 0:02:27.1]} 23. Ndb5 {[%clk 0:00:42.2]} 23... d4 {[%clk 0:01:47]} 24.
Bxd4 {[%clk 0:00:42.8]} 24... Ne6 {[%clk 0:01:47.1]} 25. Qc1 {[%clk 0:00:39]}
25... Nxg3 {[%clk 0:01:09]} 26. Rxe6 {[%clk 0:00:30.4]} 26... Rxe6 {[%clk
0:00:55]} 27. Kxg3 {[%clk 0:00:26.6]} 27... Rg6+ {[%clk 0:00:52]} 28. Kh2 {[%clk
0:00:26.4]} 28... Bd6+ {[%clk 0:00:50.1]} 29. Kh1 {[%clk 0:00:25.1]} 29... Bg3
{[%clk 0:00:50.8]} 30. h5 {[%clk 0:00:23]} 30... Rg5 {[%clk 0:00:51.8]} 31. Ne4
{[%clk 0:00:21]} 31... Rxh5+ {[%clk 0:00:52.1]} 32. Kg1 {[%clk 0:00:21.3]} 32...
Bb8 {[%clk 0:00:45.7]} 33. Qd2 {[%clk 0:00:19]} 33... Qe7 {[%clk 0:00:45.8]} 34.
Qxa5 {[%clk 0:00:16.3]} 34... Rhd5 {[%clk 0:00:43.4]} 35. c4 {[%clk 0:00:14.7]}
35... R5d7 {[%clk 0:00:38.2]} 36. Qc3 {[%clk 0:00:13.6]} 36... Qh4 {[%clk
0:00:28.8]} 37. c5 {[%clk 0:00:11.3]} 37... Be5 {[%clk 0:00:29]} 38. Nbd6 {[%clk
0:00:04.8]} 38... Rxd6 {[%clk 0:00:17.9]} 39. cxd6 {[%clk 0:00:06.7]} 39... Qh2+
{[%clk 0:00:16.6]} 40. Kf2 {[%clk 0:00:07.4]} 40... Bh3 {[%clk 0:00:16.5]} 41.
Kf1 {[%clk 0:00:08.7]} 41... Qxg2+ {[%clk 0:00:17.2]} 42. Ke1 {[%clk 0:00:09.1]}
42... Bf4 {[%clk 0:00:14]} 43. Bf2 {[%clk 0:00:08]} 43... Qf1# {[%clk 0:00:15]}
0-1

[Event "*** MasterClass Titled Tuesday Blitz"]
[Site "Chess.com"]
[Date "2017.11.07"]
[Round "6"]
[White "AkshatChandra"]
[Black "yurisolo"]
[Result "0-1"]
[WhiteElo "2725"]
[BlackElo "2604"]
[TimeControl "180+2"]
[EndTime "15:28:49 PST"]
[Termination "yurisolo won on time"]

1. d4 {[%clk 0:03:01.9]} 1... Nf6 {[%clk 0:03:00.5]} 2. c4 {[%clk 0:03:03.3]}
2... c6 {[%clk 0:03:00.7]} 3. Nc3 {[%clk 0:03:00.5]} 3... d5 {[%clk 0:03:01.3]}
4. cxd5 {[%clk 0:02:49.1]} 4... cxd5 {[%clk 0:03:03.2]} 5. Bf4 {[%clk
0:02:50.3]} 5... Nc6 {[%clk 0:03:04.4]} 6. e3 {[%clk 0:02:51.9]} 6... Bf5 {[%clk
0:03:03]} 7. Qb3 {[%clk 0:02:48.9]} 7... Na5 {[%clk 0:03:00.8]} 8. Bb5+ {[%clk
0:02:28.3]} 8... Bd7 {[%clk 0:03:01.5]} 9. Qd1 {[%clk 0:02:28.8]} 9... e6 {[%clk
0:02:56.8]} 10. Bd3 {[%clk 0:02:28.5]} 10... Rc8 {[%clk 0:02:53.1]} 11. Nf3
{[%clk 0:02:25.5]} 11... Nc4 {[%clk 0:02:53.2]} 12. Qe2 {[%clk 0:02:22.2]} 12...
Bb4 {[%clk 0:02:53.4]} 13. Bxc4 {[%clk 0:02:18.6]} 13... Rxc4 {[%clk 0:02:52.4]}
14. O-O {[%clk 0:02:19.3]} 14... Bxc3 {[%clk 0:02:30.1]} 15. bxc3 {[%clk
0:02:21.2]} 15... Rxc3 {[%clk 0:02:20.9]} 16. Qb2 {[%clk 0:01:59]} 16... Ne4
{[%clk 0:02:07.4]} 17. Qxb7 {[%clk 0:01:22.7]} 17... f6 {[%clk 0:02:08.5]} 18.
Rfc1 {[%clk 0:01:13.5]} 18... Qc8 {[%clk 0:01:54.6]} 19. Qb2 {[%clk 0:00:39.4]}
19... Qc4 {[%clk 0:01:36.3]} 20. Nd2 {[%clk 0:00:27.3]} 20... Rxc1+ {[%clk
0:01:32.4]} 21. Rxc1 {[%clk 0:00:27.6]} 21... Qe2 {[%clk 0:01:33.9]} 22. Nc4
{[%clk 0:00:13.3]} 22... Qxb2 {[%clk 0:01:28.3]} 23. Nxb2 {[%clk 0:00:15.2]}
23... Ke7 {[%clk 0:01:29.8]} 24. f3 {[%clk 0:00:15.9]} 24... g5 {[%clk
0:01:19.9]} 25. Bc7 {[%clk 0:00:11.8]} 25... Nd6 {[%clk 0:01:18.9]} 26. Kf2
{[%clk 0:00:10.1]} 26... Rc8 {[%clk 0:01:07]} 27. Bxd6+ {[%clk 0:00:09.5]} 27...
Kxd6 {[%clk 0:01:08.9]} 28. Rxc8 {[%clk 0:00:10.2]} 28... Bxc8 {[%clk
0:01:10.8]} 29. e4 {[%clk 0:00:09.2]} 29... dxe4 {[%clk 0:00:51.8]} 30. fxe4
{[%clk 0:00:11.1]} 30... Bb7 {[%clk 0:00:53.4]} 31. Ke3 {[%clk 0:00:10.7]} 31...
f5 {[%clk 0:00:54.8]} 32. Nc4+ {[%clk 0:00:11.4]} 32... Ke7 {[%clk 0:00:37.8]}
33. exf5 {[%clk 0:00:07]} 33... exf5 {[%clk 0:00:38]} 34. g3 {[%clk 0:00:08]}
34... Ke6 {[%clk 0:00:37.7]} 35. h4 {[%clk 0:00:05.2]} 35... Bd5 {[%clk
0:00:18.2]} 36. Ne5 {[%clk 0:00:06.7]} 36... f4+ {[%clk 0:00:17.9]} 37. gxf4
{[%clk 0:00:07.5]} 37... gxh4 {[%clk 0:00:18.8]} 38. a3 {[%clk 0:00:08.1]} 38...
h3 {[%clk 0:00:19.6]} 39. Ng4 {[%clk 0:00:04.1]} 39... Kf5 {[%clk 0:00:20.8]}
40. Nh2 {[%clk 0:00:05.7]} 40... Bg2 {[%clk 0:00:21.4]} 41. a4 {[%clk
0:00:02.3]} 41... a5 {[%clk 0:00:21.9]} 42. Kf2 {[%clk 0:00:02.5]} 42... Kxf4
{[%clk 0:00:23.1]} 43. Kg1 {[%clk 0:00:02.7]} 43... h5 {[%clk 0:00:20]} 44. Kf2
{[%clk 0:00:03.1]} 44... Ke4 {[%clk 0:00:21.2]} 45. Kg1 {[%clk 0:00:02.5]} 45...
Ke3 {[%clk 0:00:19.5]} 0-1

[Event "*** MasterClass Titled Tuesday Blitz"]
[Site "Chess.com"]
[Date "2017.11.07"]
[Round "6"]
[White "Mistheoretical"]
[Black "Rhinos1"]
[Result "0-1"]
[WhiteElo "2295"]
[BlackElo "2053"]
[TimeControl "180+2"]
[EndTime "15:28:50 PST"]
[Termination "Rhinos1 won by checkmate"]

1. d4 {[%clk 0:03:01.9]} 1... g6 {[%clk 0:03:00.1]} 2. e4 {[%clk 0:03:02.6]}
2... Bg7 {[%clk 0:03:00.5]} 3. Nc3 {[%clk 0:03:03.9]} 3... d6 {[%clk 0:03:02.4]}
4. Be3 {[%clk 0:03:04.9]} 4... Nf6 {[%clk 0:03:04]} 5. f3 {[%clk 0:03:05.8]}
5... O-O {[%clk 0:03:05.5]} 6. Qd2 {[%clk 0:03:07.3]} 6... c6 {[%clk 0:03:07.1]}
7. O-O-O {[%clk 0:03:08.4]} 7... Nbd7 {[%clk 0:03:03.3]} 8. Bh6 {[%clk 0:03:09]}
8... Qa5 {[%clk 0:03:00.3]} 9. Kb1 {[%clk 0:03:05.8]} 9... b5 {[%clk 0:02:57.4]}
10. g4 {[%clk 0:02:03.6]} 10... c5 {[%clk 0:02:34.3]} 11. Nd5 {[%clk 0:01:46.7]}
11... Qxd2 {[%clk 0:02:30.1]} 12. Nxe7+ {[%clk 0:01:45.9]} 12... Kh8 {[%clk
0:02:29.5]} 13. Bxg7+ {[%clk 0:01:45.2]} 13... Kxg7 {[%clk 0:02:27.4]} 14. Rxd2
{[%clk 0:01:45.9]} 14... c4 {[%clk 0:02:06.7]} 15. Nxc8 {[%clk 0:01:18.4]} 15...
Raxc8 {[%clk 0:01:58.2]} 16. c3 {[%clk 0:01:15.4]} 16... Rfe8 {[%clk 0:01:54.3]}
17. Ne2 {[%clk 0:01:06.9]} 17... h5 {[%clk 0:01:43.6]} 18. g5 {[%clk 0:00:56.4]}
18... Nh7 {[%clk 0:01:44.5]} 19. h4 {[%clk 0:00:57.3]} 19... Nhf8 {[%clk
0:01:39.9]} 20. Bh3 {[%clk 0:00:56.5]} 20... Rb8 {[%clk 0:01:31.8]} 21. a3
{[%clk 0:00:51.5]} 21... Nb6 {[%clk 0:01:29.2]} 22. Nf4 {[%clk 0:00:43.1]} 22...
Ne6 {[%clk 0:01:13.9]} 23. Ng2 {[%clk 0:00:27.2]} 23... a5 {[%clk 0:01:07]} 24.
f4 {[%clk 0:00:24.1]} 24... Nc7 {[%clk 0:01:07.1]} 25. Re2 {[%clk 0:00:24.3]}
25... b4 {[%clk 0:01:03.2]} 26. axb4 {[%clk 0:00:17.6]} 26... axb4 {[%clk
0:01:05.1]} 27. Kc2 {[%clk 0:00:17.9]} 27... b3+ {[%clk 0:00:59.4]} 28. Kd2
{[%clk 0:00:16.3]} 28... Ra8 {[%clk 0:00:49.1]} 29. Ke3 {[%clk 0:00:13.6]} 29...
Ra2 {[%clk 0:00:47]} 30. Kf3 {[%clk 0:00:11.6]} 30... Na4 {[%clk 0:00:29.7]} 31.
Rb1 {[%clk 0:00:12.3]} 31... Nb5 {[%clk 0:00:26.7]} 32. Bd7 {[%clk 0:00:11.8]}
32... Rb8 {[%clk 0:00:27.7]} 33. Ne3 {[%clk 0:00:08.9]} 33... Nbxc3 {[%clk
0:00:25.5]} 34. Bxa4 {[%clk 0:00:03.5]} 34... Nxb1 {[%clk 0:00:22.4]} 35. Bc6
{[%clk 0:00:02.7]} 35... Rb6 {[%clk 0:00:19.4]} 36. Bd5 {[%clk 0:00:02.2]} 36...
c3 {[%clk 0:00:19.2]} 37. bxc3 {[%clk 0:00:02.3]} 37... Rxe2 {[%clk 0:00:21]}
38. Kxe2 {[%clk 0:00:03.3]} 38... Nxc3+ {[%clk 0:00:22.9]} 39. Kd3 {[%clk
0:00:04.2]} 39... b2 {[%clk 0:00:21.6]} 40. Nc4 {[%clk 0:00:04.8]} 40... b1=Q+
{[%clk 0:00:21.5]} 41. Kxc3 {[%clk 0:00:05.6]} 41... Qb3+ {[%clk 0:00:21.1]} 42.
Kd2 {[%clk 0:00:06.7]} 42... Ra6 {[%clk 0:00:22.6]} 43. e5 {[%clk 0:00:06.9]}
43... Ra2+ {[%clk 0:00:23.7]} 44. Kc1 {[%clk 0:00:02.9]} 44... Qc2# {[%clk
0:00:24.2]} 0-1

[Event "*** MasterClass Titled Tuesday Blitz"]
[Site "Chess.com"]
[Date "2017.11.07"]
[Round "6"]
[White "chessdude"]
[Black "Squirlolz"]
[Result "0-1"]
[WhiteElo "2478"]
[BlackElo "2446"]
[TimeControl "180+2"]
[EndTime "15:29:09 PST"]
[Termination "Squirlolz won by checkmate"]

1. e4 {[%clk 0:03:01.9]} 1... e6 {[%clk 0:02:55.4]} 2. d4 {[%clk 0:03:02.3]}
2... d5 {[%clk 0:02:57]} 3. Nc3 {[%clk 0:03:03.7]} 3... Nf6 {[%clk 0:02:57.8]}
4. e5 {[%clk 0:03:04.5]} 4... Nfd7 {[%clk 0:02:59.3]} 5. f4 {[%clk 0:03:05.7]}
5... c5 {[%clk 0:03:00.8]} 6. Nf3 {[%clk 0:03:06.5]} 6... Nc6 {[%clk 0:03:02.3]}
7. Be3 {[%clk 0:03:07.6]} 7... Be7 {[%clk 0:03:02.7]} 8. Qd2 {[%clk 0:03:07.5]}
8... a6 {[%clk 0:03:03.6]} 9. Be2 {[%clk 0:03:06.7]} 9... b5 {[%clk 0:03:03.9]}
10. a3 {[%clk 0:03:08]} 10... O-O {[%clk 0:03:03.9]} 11. O-O {[%clk 0:03:08.4]}
11... Bb7 {[%clk 0:03:05.4]} 12. Nd1 {[%clk 0:03:04.5]} 12... cxd4 {[%clk
0:03:05.8]} 13. Nxd4 {[%clk 0:03:03.8]} 13... Nc5 {[%clk 0:03:04]} 14. Nf2
{[%clk 0:03:03.7]} 14... Rc8 {[%clk 0:03:04]} 15. Rad1 {[%clk 0:02:47.6]} 15...
Qc7 {[%clk 0:03:03.2]} 16. Nxc6 {[%clk 0:02:41]} 16... Bxc6 {[%clk 0:02:56.3]}
17. Bd4 {[%clk 0:02:41.8]} 17... a5 {[%clk 0:02:52.9]} 18. Qe3 {[%clk
0:02:42.2]} 18... Bb7 {[%clk 0:02:42.9]} 19. Bxb5 {[%clk 0:02:21]} 19... a4
{[%clk 0:02:23.8]} 20. Bd3 {[%clk 0:02:11.6]} 20... Nxd3 {[%clk 0:02:09.2]} 21.
cxd3 {[%clk 0:02:07.7]} 21... Qc2 {[%clk 0:02:09.7]} 22. Rc1 {[%clk 0:01:49.4]}
22... Qb3 {[%clk 0:02:09.5]} 23. Rxc8 {[%clk 0:01:46.5]} 23... Rxc8 {[%clk
0:02:10]} 24. Rc1 {[%clk 0:01:47.7]} 24... Bd8 {[%clk 0:01:41.1]} 25. Rxc8
{[%clk 0:01:40.4]} 25... Bxc8 {[%clk 0:01:42.1]} 26. Qc1 {[%clk 0:01:41.5]}
26... Bd7 {[%clk 0:01:35.3]} 27. Qc3 {[%clk 0:01:36.9]} 27... Qb7 {[%clk
0:01:30.6]} 28. Bc5 {[%clk 0:01:29.4]} 28... Bb5 {[%clk 0:01:26.8]} 29. Bd4
{[%clk 0:01:15.5]} 29... Qa6 {[%clk 0:01:24.3]} 30. Kf1 {[%clk 0:01:12.4]} 30...
Ba5 {[%clk 0:01:21.2]} 31. Qc2 {[%clk 0:01:13.5]} 31... h6 {[%clk 0:01:09.6]}
32. Ke2 {[%clk 0:01:13.3]} 32... Bb6 {[%clk 0:00:55.4]} 33. Bxb6 {[%clk
0:01:11.7]} 33... Qxb6 {[%clk 0:00:57.3]} 34. Qc3 {[%clk 0:01:07.4]} 34... d4
{[%clk 0:00:57]} 35. Qc8+ {[%clk 0:01:02.3]} 35... Kh7 {[%clk 0:00:57.6]} 36.
Qc2 {[%clk 0:00:43.6]} 36... Qb7 {[%clk 0:00:43.7]} 37. Qc5 {[%clk 0:00:34.4]}
37... Bc6 {[%clk 0:00:41.7]} 38. Qxd4 {[%clk 0:00:35.3]} 38... Bxg2 {[%clk
0:00:42.7]} 39. Ne4 {[%clk 0:00:36.2]} 39... Qb3 {[%clk 0:00:32.8]} 40. Nd2
{[%clk 0:00:32.5]} 40... Qb7 {[%clk 0:00:25.4]} 41. Qxa4 {[%clk 0:00:25.1]}
41... Qxb2 {[%clk 0:00:19.9]} 42. Qb4 {[%clk 0:00:23.4]} 42... Qc1 {[%clk
0:00:18.8]} 43. a4 {[%clk 0:00:22.6]} 43... Bd5 {[%clk 0:00:14.8]} 44. a5 {[%clk
0:00:21.7]} 44... Qg1 {[%clk 0:00:13.8]} 45. Qb6 {[%clk 0:00:20]} 45... Qxh2+
{[%clk 0:00:13.5]} 46. Qf2 {[%clk 0:00:21.4]} 46... Qh5+ {[%clk 0:00:10.9]} 47.
Ke3 {[%clk 0:00:18.9]} 47... Qh3+ {[%clk 0:00:11.3]} 48. Kd4 {[%clk 0:00:20.2]}
48... Qh1 {[%clk 0:00:09.5]} 49. Kc5 {[%clk 0:00:21.2]} 49... Qa1 {[%clk
0:00:08.2]} 50. Kb6 {[%clk 0:00:18.2]} 50... Qb2+ {[%clk 0:00:09.5]} 51. Ka7
{[%clk 0:00:18.9]} 51... Qb7# {[%clk 0:00:10.6]} 0-1

[Event "*** MasterClass Titled Tuesday Blitz"]
[Site "Chess.com"]
[Date "2017.11.07"]
[Round "6"]
[White "Hasangatin_Ramil"]
[Black "VerdeNotte"]
[Result "0-1"]
[WhiteElo "2445"]
[BlackElo "2662"]
[TimeControl "180+2"]
[EndTime "15:29:09 PST"]
[Termination "VerdeNotte won on time"]

1. e4 {[%clk 0:03:00.5]} 1... c5 {[%clk 0:03:00.5]} 2. Nf3 {[%clk 0:03:01.6]}
2... d6 {[%clk 0:03:02]} 3. Bb5+ {[%clk 0:03:02.6]} 3... Nc6 {[%clk 0:03:02.4]}
4. d4 {[%clk 0:03:01.1]} 4... cxd4 {[%clk 0:03:03.1]} 5. Qxd4 {[%clk 0:03:03]}
5... a6 {[%clk 0:03:01.2]} 6. Bxc6+ {[%clk 0:03:03]} 6... bxc6 {[%clk
0:03:03.1]} 7. c4 {[%clk 0:03:01.5]} 7... e5 {[%clk 0:03:00.1]} 8. Qd3 {[%clk
0:03:01.7]} 8... Bg4 {[%clk 0:03:00.9]} 9. Nc3 {[%clk 0:02:58.8]} 9... Be7
{[%clk 0:02:59.7]} 10. O-O {[%clk 0:02:58.9]} 10... Qc7 {[%clk 0:02:59.3]} 11.
h3 {[%clk 0:02:56.6]} 11... Be6 {[%clk 0:03:00.1]} 12. b3 {[%clk 0:02:49.8]}
12... Nf6 {[%clk 0:02:59.9]} 13. Bg5 {[%clk 0:02:47.9]} 13... O-O {[%clk
0:02:56.9]} 14. Rfd1 {[%clk 0:02:46.1]} 14... Rfd8 {[%clk 0:02:56.7]} 15. Rac1
{[%clk 0:02:47]} 15... Nh5 {[%clk 0:02:56.4]} 16. Nd5 {[%clk 0:02:22.5]} 16...
Bxd5 {[%clk 0:02:46.5]} 17. cxd5 {[%clk 0:02:18.6]} 17... Bxg5 {[%clk 0:02:47]}
18. Nxg5 {[%clk 0:02:15]} 18... Qe7 {[%clk 0:02:46.5]} 19. Nf3 {[%clk
0:02:06.9]} 19... Nf4 {[%clk 0:02:47.1]} 20. Qe3 {[%clk 0:02:01.7]} 20... cxd5
{[%clk 0:02:48]} 21. exd5 {[%clk 0:02:00]} 21... Rac8 {[%clk 0:02:48.7]} 22. Rc6
{[%clk 0:01:55.6]} 22... Nxd5 {[%clk 0:02:47]} 23. Qc1 {[%clk 0:01:44.3]} 23...
Qb7 {[%clk 0:02:41.2]} 24. Rxc8 {[%clk 0:00:56.9]} 24... Rxc8 {[%clk 0:02:43.1]}
25. Qa3 {[%clk 0:00:49.9]} 25... e4 {[%clk 0:02:30.4]} 26. Qxd6 {[%clk
0:00:45.9]} 26... Nf6 {[%clk 0:02:07.3]} 27. Ne5 {[%clk 0:00:36.1]} 27... h6
{[%clk 0:02:06.6]} 28. Nc4 {[%clk 0:00:36.7]} 28... Qb5 {[%clk 0:01:56.7]} 29.
Rd2 {[%clk 0:00:29.1]} 29... Re8 {[%clk 0:01:48.9]} 30. Qc7 {[%clk 0:00:24]}
30... Qg5 {[%clk 0:01:46.1]} 31. Rd8 {[%clk 0:00:22.3]} 31... Qc1+ {[%clk
0:01:42]} 32. Kh2 {[%clk 0:00:20.1]} 32... Rxd8 {[%clk 0:01:38.8]} 33. Qxd8+
{[%clk 0:00:22]} 33... Kh7 {[%clk 0:01:40.1]} 34. Qd2 {[%clk 0:00:20]} 34... Qa1
{[%clk 0:01:26.1]} 35. Qb2 {[%clk 0:00:20.8]} 35... Qf1 {[%clk 0:01:20.4]} 36.
Ne3 {[%clk 0:00:19.3]} 36... Qe1 {[%clk 0:01:21.2]} 37. Nc4 {[%clk 0:00:13.9]}
37... h5 {[%clk 0:01:17.4]} 38. Qd4 {[%clk 0:00:12.1]} 38... Qb1 {[%clk
0:01:05.7]} 39. Qd2 {[%clk 0:00:08.5]} 39... Qd3 {[%clk 0:00:59]} 40. Qxd3
{[%clk 0:00:08.2]} 40... exd3 {[%clk 0:01:00]} 41. Nd2 {[%clk 0:00:09.7]} 41...
Kg6 {[%clk 0:00:53.5]} 42. Kg3 {[%clk 0:00:10.7]} 42... Kf5 {[%clk 0:00:54.8]}
43. Kf3 {[%clk 0:00:12.2]} 43... Nd5 {[%clk 0:00:56]} 44. a3 {[%clk 0:00:12.9]}
44... g5 {[%clk 0:00:56.2]} 45. b4 {[%clk 0:00:11.7]} 45... g4+ {[%clk 0:00:57]}
46. hxg4+ {[%clk 0:00:11.6]} 46... hxg4+ {[%clk 0:00:58.9]} 47. Kg3 {[%clk
0:00:13.1]} 47... Nc3 {[%clk 0:01:00.3]} 48. f3 {[%clk 0:00:09.8]} 48... Ne2+
{[%clk 0:00:57.8]} 49. Kf2 {[%clk 0:00:10.2]} 49... g3+ {[%clk 0:00:59.2]} 50.
Ke3 {[%clk 0:00:11.2]} 50... Nf4 {[%clk 0:01:00.1]} 51. Ne4 {[%clk 0:00:10.9]}
51... Nxg2+ {[%clk 0:01:00.2]} 52. Kxd3 {[%clk 0:00:11.5]} 52... Ne1+ {[%clk
0:00:53.8]} 53. Ke2 {[%clk 0:00:12]} 53... g2 {[%clk 0:00:54.9]} 54. Kf2 {[%clk
0:00:13]} 54... g1=Q+ {[%clk 0:00:54.3]} 55. Kxg1 {[%clk 0:00:12.4]} 55... Nxf3+
{[%clk 0:00:55.4]} 56. Kf2 {[%clk 0:00:14]} 56... Kxe4 {[%clk 0:00:56.8]} 57. a4
{[%clk 0:00:15.4]} 57... Nd4 {[%clk 0:00:57.5]} 0-1

[Event "*** MasterClass Titled Tuesday Blitz"]
[Site "Chess.com"]
[Date "2017.11.07"]
[Round "6"]
[White "matej2221"]
[Black "SCIM"]
[Result "1-0"]
[WhiteElo "2076"]
[BlackElo "2410"]
[TimeControl "180+2"]
[EndTime "15:29:10 PST"]
[Termination "matej2221 won by checkmate"]

1. e4 {[%clk 0:03:01.8]} 1... c5 {[%clk 0:02:58.8]} 2. Nf3 {[%clk 0:03:02.2]}
2... e6 {[%clk 0:02:59.8]} 3. c4 {[%clk 0:03:00.5]} 3... Nc6 {[%clk 0:02:59.6]}
4. d4 {[%clk 0:03:00.2]} 4... cxd4 {[%clk 0:03:00.1]} 5. Nxd4 {[%clk 0:03:02.1]}
5... Nf6 {[%clk 0:03:01.1]} 6. Nc3 {[%clk 0:03:02.2]} 6... Bb4 {[%clk
0:03:00.9]} 7. Nxc6 {[%clk 0:03:03.3]} 7... bxc6 {[%clk 0:03:01.3]} 8. Bd3
{[%clk 0:03:03.1]} 8... d5 {[%clk 0:03:00.9]} 9. exd5 {[%clk 0:02:58.4]} 9...
exd5 {[%clk 0:03:00.5]} 10. O-O {[%clk 0:02:44]} 10... O-O {[%clk 0:02:56.6]}
11. Bg5 {[%clk 0:02:42.5]} 11... dxc4 {[%clk 0:02:44.5]} 12. Bxc4 {[%clk
0:02:39.9]} 12... Qxd1 {[%clk 0:02:44.5]} 13. Rfxd1 {[%clk 0:02:36.5]} 13...
Bxc3 {[%clk 0:02:44.5]} 14. bxc3 {[%clk 0:02:37]} 14... Ne4 {[%clk 0:02:43.8]}
15. Bd2 {[%clk 0:02:04.6]} 15... Bf5 {[%clk 0:02:35.6]} 16. f3 {[%clk
0:01:57.2]} 16... Nd6 {[%clk 0:02:29.8]} 17. Ba6 {[%clk 0:01:48.2]} 17... Nb5
{[%clk 0:02:21.2]} 18. Bb7 {[%clk 0:01:30.1]} 18... Rab8 {[%clk 0:02:00.8]} 19.
Bxc6 {[%clk 0:01:29.6]} 19... Na3 {[%clk 0:01:59.9]} 20. Bf4 {[%clk 0:01:21.3]}
20... Rb6 {[%clk 0:01:56]} 21. Bd6 {[%clk 0:01:17.5]} 21... Rxc6 {[%clk
0:01:45]} 22. Bxa3 {[%clk 0:01:16.3]} 22... Re8 {[%clk 0:01:41.2]} 23. Bb4
{[%clk 0:01:02.5]} 23... h5 {[%clk 0:01:41.6]} 24. Rd5 {[%clk 0:00:52.6]} 24...
g6 {[%clk 0:01:31.5]} 25. Rad1 {[%clk 0:00:51.6]} 25... Kh7 {[%clk 0:01:25.8]}
26. Rd8 {[%clk 0:00:27.2]} 26... Re2 {[%clk 0:01:19]} 27. R1d2 {[%clk
0:00:28.3]} 27... Rce6 {[%clk 0:01:14.2]} 28. Rxe2 {[%clk 0:00:23.5]} 28... Rxe2
{[%clk 0:01:14.1]} 29. a4 {[%clk 0:00:21.1]} 29... a6 {[%clk 0:00:58.2]} 30. Rd6
{[%clk 0:00:16.3]} 30... Bc8 {[%clk 0:00:40.8]} 31. Rc6 {[%clk 0:00:15.9]} 31...
Re8 {[%clk 0:00:39.7]} 32. Kf2 {[%clk 0:00:15.8]} 32... Kg7 {[%clk 0:00:24.4]}
33. Bc5 {[%clk 0:00:13.7]} 33... a5 {[%clk 0:00:21.3]} 34. Bd4+ {[%clk
0:00:13.7]} 34... Kh7 {[%clk 0:00:20.9]} 35. Rc5 {[%clk 0:00:09.8]} 35... Be6
{[%clk 0:00:21.4]} 36. Rxa5 {[%clk 0:00:10.3]} 36... Bc4 {[%clk 0:00:22.1]} 37.
Re5 {[%clk 0:00:09.7]} 37... Rb8 {[%clk 0:00:21.4]} 38. a5 {[%clk 0:00:07.7]}
38... h4 {[%clk 0:00:22.6]} 39. f4 {[%clk 0:00:05.1]} 39... Rb2+ {[%clk
0:00:22]} 40. Kf3 {[%clk 0:00:06.3]} 40... Bf1 {[%clk 0:00:21.3]} 41. g3 {[%clk
0:00:06.6]} 41... Bg2+ {[%clk 0:00:16.4]} 42. Ke3 {[%clk 0:00:06.8]} 42... h3
{[%clk 0:00:15.6]} 43. Re7 {[%clk 0:00:05.6]} 43... Bd5 {[%clk 0:00:13.2]} 44.
g4 {[%clk 0:00:02.9]} 44... Rxh2 {[%clk 0:00:12.7]} 45. Re8 {[%clk 0:00:02.5]}
45... g5 {[%clk 0:00:13.6]} 46. Rh8+ {[%clk 0:00:03.3]} 46... Kg6 {[%clk
0:00:13.9]} 47. f5# {[%clk 0:00:05.2]} 1-0